fUSD/lending_fUSD_20250120
["ID","MTS","AMOUNT","RATE_DAILY","PERIOD"]
[349678055,1737371438480,-500.0,0.00020999,2]
[349678056,1737371438490,-500.0,0.00020999,2]
[349678057,1737371438500,-794.35,0.00020999,2]
[349678058,1737371438509,-500.0,0.00020999,2]
[349678059,1737371438519,-500.0,0.00020999,2]
[349678060,1737371438530,-500.0,0.00020999,2]
[349678061,1737371438539,-500.0,0.00020999,2]
[349678062,1737371438549,-975.37,0.00020999,2]
[349678063,1737371438559,-500.0,0.00020999,2]
[349678064,1737371438569,-500.0,0.00020999,2]
[349678065,1737371438580,-500.0,0.00020999,2]
[349678066,1737371438590,-500.0,0.00020999,2]
[349678067,1737371438600,-500.0,0.00020999,2]
[349678068,1737371438611,-500.0,0.00020999,2]
[349678069,1737371438620,-500.0,0.00020999,2]
[349678070,1737371438630,-824.68,0.00020999,2]
[349678071,1737371438639,-500.0,0.00020999,2]
[349678072,1737371438649,-500.0,0.00020999,2]
[349678073,1737371438659,-500.0,0.00020999,2]
[349678074,1737371438669,-500.0,0.00020999,2]
[349678075,1737371438679,-548.8,0.00020999,2]
[349678076,1737371438689,-500.0,0.00020999,2]
[349678077,1737371438698,-500.0,0.00020999,2]
[349678078,1737371438707,-500.0,0.00020999,2]
[349678080,1737371438717,-500.0,0.00020999,2]
[349678082,1737371438726,-1389.45,0.00020999,2]
[349678084,1737371438736,-500.0,0.00020999,2]
[349678086,1737371438745,-1153.43,0.00020999,2]
[349678087,1737371438759,-1636.01,0.00020999,2]
[349678088,1737371438768,-500.0,0.00020999,2]
[349678089,1737371438778,-500.0,0.00020999,2]
[349678090,1737371438787,-424.30940062,0.00020999,2]
[349678091,1737371438796,-500.0,0.00020999,2]
[349678092,1737371438806,-500.0,0.00020999,2]
[349678093,1737371438816,-739.24,0.00020999,2]
[349678094,1737371438825,-550.58,0.00020999,2]
[349678095,1737371438835,-500.0,0.00020999,2]
[349678096,1737371438844,-500.0,0.00020999,2]
[349678097,1737371438853,-534.49,0.00020999,2]
[349678098,1737371438863,-608.55,0.00020999,2]
[349678099,1737371438872,-341.29322911,0.00020999,2]
[349678100,1737371438886,-158.70677089,0.00020999,2]
[349678101,1737371438895,-764.63,0.00020999,2]
[349678102,1737371438905,-500.0,0.00020999,2]
[349678104,1737371438914,-500.0,0.00020999,2]
[349678106,1737371438924,-512.1,0.00020999,2]
[349678108,1737371438934,-500.0,0.00020999,2]
[349678110,1737371438945,-964.27,0.00020999,2]
[349678113,1737371438954,-2433.43,0.00020999,2]
[349678114,1737371438963,-444.15735437,0.00020999,2]
[349678115,1737371438973,-751.35,0.00020999,2]
[349678116,1737371438982,-500.0,0.00020999,2]
[349678117,1737371438992,-501.90929987,0.00020999,2]
[349678118,1737371439001,-500.0,0.00020999,2]
[349678119,1737371439011,-500.0,0.00020999,2]
[349678120,1737371439020,-1604.97,0.00020999,2]
[349678121,1737371439029,-839.35,0.00020999,2]
[349678122,1737371439039,-682.43,0.00020999,2]
[349678123,1737371439048,-500.0,0.00020999,2]
[349678124,1737371439057,-646.03634509,0.00020999,2]
[349678125,1737371439159,-131.99365491,0.00020999,2]
[349678126,1737371439332,-580.07645975,0.00020999,2]
[349678127,1737371439343,-2709.24359809,0.00020999,2]
[349678128,1737371439380,-435.6686478,0.00020999,2]
[349678129,1737371439391,-297.19775411,0.00020999,2]
[349678130,1737371439401,-913.57,0.00020999,2]
[349678131,1737371439411,-500.0,0.00020999,2]
[349678132,1737371439420,-500.0,0.00020999,2]
[349678133,1737371439430,-500.0,0.00020999,2]
[349678134,1737371439441,-500.0,0.00020999,2]
[349678135,1737371439450,-500.0,0.00020999,2]
[349678136,1737371439459,-523.53,0.00020999,2]
[349678137,1737371439469,-787.87,0.00020999,2]
[349678138,1737371439478,-942.88,0.00020999,2]
[349678139,1737371439487,-500.0,0.00020999,2]
[349678140,1737371439497,-500.0,0.00020999,2]
[349678141,1737371439506,-500.0,0.00020999,2]
[349678142,1737371439515,-1110.41,0.00020999,2]
[349678143,1737371439525,-1452.9,0.00020999,2]
[349678144,1737371439534,-661.44,0.00020999,2]
[349678145,1737371439543,-1052.55,0.00020999,2]
[349678146,1737371439553,-632.86,0.00020999,2]
[349678147,1737371439562,-513.21,0.00020999,2]
[349678148,1737371439571,-1795.72,0.00020999,2]
[349678149,1737371439581,-500.0,0.00020999,2]
[349678150,1737371439590,-500.0,0.00020999,2]
[349678151,1737371439599,-1575.74,0.00020999,2]
[349678152,1737371439609,-500.0,0.00020999,2]
[349678153,1737371439618,-607.26,0.00020999,2]
[349678154,1737371439628,-500.0,0.00020999,2]
[349678155,1737371439637,-500.0,0.00020999,2]
[349678156,1737371439646,-895.55,0.00020999,2]
[349678157,1737371439656,-2976.65,0.00020999,2]
[349678158,1737371439666,-1050.07,0.00020999,2]
[349678159,1737371439676,-749.52,0.00020999,2]
[349678160,1737371439685,-500.0,0.00020999,2]
[349678161,1737371439700,-764.28,0.00020999,2]
[349678162,1737371439709,-194.36118358,0.00020999,2]
[349678163,1737371439721,-305.63881642,0.00020999,2]
[349678164,1737371439730,-500.0,0.00020999,2]
[349678165,1737371439740,-1883.74,0.00020999,2]
[349678166,1737371439749,-789.22,0.00020999,2]
[349678167,1737371439759,-1070.12,0.00020999,2]
[349678168,1737371439769,-500.0,0.00020999,2]
[349678169,1737371439779,-500.0,0.00020999,2]
[349678170,1737371439788,-1682.06,0.00020999,2]
[349678171,1737371439797,-500.0,0.00020999,2]
[349678172,1737371439807,-1257.79,0.00020999,2]
[349678173,1737371439816,-500.0,0.00020999,2]
[349678174,1737371439825,-500.0,0.00020999,2]
[349678175,1737371439834,-500.0,0.00020999,2]
[349678176,1737371439843,-500.0,0.00020999,2]
[349678177,1737371439853,-500.0,0.00020999,2]
[349678178,1737371439862,-933.05,0.00020999,2]
[349678179,1737371439871,-500.0,0.00020999,2]
[349678180,1737371439881,-500.0,0.00020999,2]
[349678181,1737371439890,-500.0,0.00020999,2]
[349678182,1737371439900,-500.0,0.00020999,2]
[349678183,1737371439909,-500.0,0.00020999,2]
[349678184,1737371439918,-2452.57,0.00020999,2]
[349678185,1737371439927,-500.0,0.00020999,2]
[349678186,1737371439936,-500.0,0.00020999,2]
[349678187,1737371439949,-684.17,0.00020999,2]
[349678188,1737371439959,-1000.0,0.00020999,2]
[349678189,1737371439970,-207.13819137,0.00020999,2]
[349678190,1737371439979,-500.0,0.00020999,2]
[349678191,1737371439989,-904.81,0.00020999,2]
[349678193,1737371439998,-500.0,0.00020999,2]
[349678194,1737371440008,-1060.97,0.00020999,2]
[349678195,1737371440017,-11005.40512818,0.00021,2]
[349678196,1737371440027,-30129.19507442,0.00021,2]
[349678197,1737371440149,-500.0,0.00020998,2]
[349678198,1737371440160,-1278.9874083,0.00021,2]
[349678199,1737371440182,-1078.8,0.00021,2]
[349678200,1737371440220,-54000.0,0.00021,2]
[349678201,1737371440279,-3548.69384427,0.00021,2]
[349678234,1737371444049,-1892.93818689,0.00017474,2]
[349678236,1737371444059,-151.67272517,0.00018064,2]
[349678238,1737371444068,-506.29,0.00020999,2]
[349678240,1737371444078,-500.0,0.00020999,2]
[349678242,1737371444087,-10264.49908708,0.00021,2]
[349678245,1737371444098,-1287.54999995,0.00021,2]
[349678256,1737371444208,-1676.2,0.00021,2]
[349678503,1737371445999,-178.885336,0.00020999,2]
[349678505,1737371446009,-304.984664,0.00020999,2]
[349678511,1737371446053,-571.435336,0.00020999,2]
[349678513,1737371446063,-2754.085354,0.00021,2]
[349678515,1737371446075,-733.2380062,0.00021,2]
[349678519,1737371446109,-7860.06098779,0.00021,2]
[349678542,1737371446321,-21594.454,0.00021,2]
[349678544,1737371446334,-1024.9157592,0.00021,2]
[349678546,1737371446346,-18341.4275,0.00021,2]
[349678561,1737371446488,-955.39489521,0.00021,2]
[349678579,1737372075984,181.79200928,0.00023233,120]
[349678583,1737372158561,150.0,0.000125,2]
[349678584,1737372308345,236430.2271104,0.00012,2]
[349678591,1737372568124,-1603.27314175,0.0001439,2]
[349678597,1737372632298,-154.50222888,0.0001439,2]
[349678598,1737372632310,-194.74164359,0.00017941,2]
[349678599,1737372632320,-355.05612753,0.00018041,2]
[349678600,1737372632331,-424.69387247,0.00018041,2]
[349678601,1737372632342,-207.15268685,0.00018164,2]
[349678602,1737372632352,-337.04619509,0.00018164,2]
[349678603,1737372632363,-162.95380491,0.00018164,2]
[349678604,1737372632373,-250.0,0.00019014,2]
[349678605,1737372632382,-294.45,0.00019634,2]
[349678606,1737372632392,-233.39,0.00019666,2]
[349678607,1737372632403,-500.0,0.00019688,2]
[349678608,1737372632412,-304.56,0.0001969,2]
[349678609,1737372632422,-173.99,0.00019777,2]
[349678610,1737372632431,-236.02519509,0.0001989,2]
[349678611,1737372632443,-13.97480491,0.0001989,2]
[349678612,1737372632453,-500.0,0.0001989,2]
[349678613,1737372632462,-10403.0891,0.000199,2]
[349678614,1737372632472,-1391.49667977,0.0002,5]
[349678615,1737372632482,-250.0,0.00020001,2]
[349678616,1737372632491,-1000.0,0.00020108,2]
[349678617,1737372632502,-168.77,0.00020235,2]
[349678618,1737372632511,-438.92,0.00020253,2]
[349678619,1737372632521,-485.62,0.00020275,30]
[349678620,1737372632530,-779.75,0.00020305,2]
[349678621,1737372632540,-184.31449845,0.00020356,2]
[349678622,1737372632555,-315.68550155,0.00020356,2]
[349678623,1737372632565,-172.41,0.00020639,2]
[349678624,1737372632574,-233.39,0.0002065,2]
[349678625,1737372632583,-204.0,0.0002078,2]
[349678626,1737372632593,-1031.82807,0.0002079,2]
[349678627,1737372632603,-740.18642845,0.00020899,2]
[349678628,1737372632641,-1752.75577155,0.00020899,2]
[349678629,1737372632652,-573.57783485,0.00020899,2]
[349678630,1737372632676,-3247.53946711,0.00020899,2]
[349678631,1737372632685,-151.32149062,0.00020899,2]
[349678632,1737372632695,-494.136,0.000209,2]
[349678633,1737372632704,-160.32,0.000209,2]
[349678634,1737372632713,-200.0,0.000209,7]
[349678635,1737372632723,-211.1210138,0.000209,2]
[349678636,1737372632733,-211.12101379,0.00020967,2]
[349678637,1737372632743,-588.3,0.0002099,2]
[349678638,1737372632752,-588.3,0.0002099,2]
[349678639,1737372632761,-500.0,0.00020998,2]
[349678640,1737372632770,-500.0,0.00020998,2]
[349678641,1737372632780,-500.0,0.00020998,2]
[349678642,1737372632789,-500.0,0.00020998,2]
[349678643,1737372632799,-500.0,0.00020998,2]
[349678644,1737372632808,-500.0,0.00020998,2]
[349678645,1737372632817,-518.47,0.00020998,2]
[349678646,1737372632827,-500.0,0.00020998,2]
[349678647,1737372632836,-557.35,0.00020998,2]
[349678648,1737372632846,-535.42,0.00020998,2]
[349678649,1737372632856,-500.0,0.00020998,2]
[349678650,1737372632866,-500.0,0.00020998,2]
[349678651,1737372632875,-500.0,0.00020998,2]
[349678652,1737372632885,-500.0,0.00020998,2]
[349678653,1737372632894,-500.0,0.00020998,2]
[349678654,1737372632905,-295.28979552,0.00020998,2]
[349678655,1737372632915,-500.0,0.00020998,2]
[349678656,1737372632924,-523.26490727,0.00020998,2]
[349678657,1737372632934,-500.0,0.00020998,2]
[349678658,1737372632943,-539.19,0.00020998,2]
[349678659,1737372632953,-500.0,0.00020998,2]
[349678660,1737372632963,-500.0,0.00020998,2]
[349678661,1737372632972,-500.0,0.00020998,2]
[349678662,1737372632981,-500.0,0.00020998,2]
[349678663,1737372632992,-500.0,0.00020998,2]
[349678664,1737372633001,-500.0,0.00020998,2]
[349678665,1737372633010,-638.66,0.00020998,2]
[349678666,1737372633020,-500.0,0.00020998,2]
[349678667,1737372633029,-500.0,0.00020998,2]
[349678668,1737372633039,-500.0,0.00020998,2]
[349678669,1737372633049,-500.0,0.00020998,2]
[349678670,1737372633059,-500.0,0.00020998,2]
[349678671,1737372633068,-500.0,0.00020998,2]
[349678672,1737372633078,-500.0,0.00020998,2]
[349678673,1737372633087,-500.0,0.00020998,2]
[349678674,1737372633097,-201.67642535,0.00020999,2]
[349678675,1737372633106,-500.0,0.00020999,2]
[349678676,1737372633116,-500.0,0.00020999,2]
[349678677,1737372633126,-500.0,0.00020999,2]
[349678678,1737372633135,-560.74959739,0.00020999,2]
[349678679,1737372633144,-500.0,0.00020999,2]
[349678680,1737372633156,-500.0,0.00020999,2]
[349678681,1737372633166,-500.0,0.00020999,2]
[349678682,1737372633176,-500.0,0.00020999,2]
[349678683,1737372633186,-500.0,0.00020999,2]
[349678684,1737372633195,-500.0,0.00020999,2]
[349678685,1737372633206,-500.0,0.00020999,2]
[349678686,1737372633216,-500.0,0.00020999,2]
[349678687,1737372633225,-500.0,0.00020999,2]
[349678688,1737372633235,-500.0,0.00020999,2]
[349678689,1737372633244,-561.88,0.00020999,2]
[349678690,1737372633254,-500.0,0.00020999,2]
[349678691,1737372633263,-500.0,0.00020999,2]
[349678692,1737372633273,-500.0,0.00020999,2]
[349678693,1737372633282,-356.814683,0.00020999,2]
[349678694,1737372633292,-500.0,0.00020999,2]
[349678695,1737372633301,-500.0,0.00020999,2]
[349678696,1737372633311,-500.0,0.00020999,2]
[349678697,1737372633322,-500.0,0.00020999,2]
[349678698,1737372633332,-500.0,0.00020999,2]
[349678699,1737372633342,-500.0,0.00020999,2]
[349678700,1737372633351,-500.0,0.00020999,2]
[349678701,1737372633361,-583.052095,0.00020999,2]
[349678702,1737372633371,-552.21,0.00020999,2]
[349678703,1737372633381,-500.0,0.00020999,2]
[349678704,1737372633391,-500.0,0.00020999,2]
[349678705,1737372633401,-641.65,0.00020999,2]
[349678706,1737372633412,-500.0,0.00020999,2]
[349678707,1737372633422,-500.0,0.00020999,2]
[349678709,1737372633432,-500.0,0.00020999,2]
[349678711,1737372633441,-618.69,0.00020999,2]
[349678713,1737372633450,-548.87,0.00020999,2]
[349678715,1737372633460,-519.4,0.00020999,2]
[349678717,1737372633469,-554.7,0.00020999,2]
[349678719,1737372633479,-500.0,0.00020999,2]
[349678721,1737372633489,-500.0,0.00020999,2]
[349678723,1737372633498,-500.0,0.00020999,2]
[349678725,1737372633508,-500.0,0.00020999,2]
[349678727,1737372633518,-560.45,0.00020999,2]
[349678729,1737372633528,-500.0,0.00020999,2]
[349678731,1737372633538,-500.0,0.00020999,2]
[349678733,1737372633549,-500.0,0.00020999,2]
[349678734,1737372633561,-206.6156386,0.00020999,2]
[349678736,1737372633571,-500.0,0.00020999,2]
[349678739,1737372633580,-500.0,0.00020999,2]
[349678740,1737372633590,-794.64,0.00020999,2]
[349678742,1737372633600,-500.0,0.00020999,2]
[349678744,1737372633610,-500.0,0.00020999,2]
[349678746,1737372633619,-500.0,0.00020999,2]
[349678748,1737372633630,-1003.33,0.00020999,2]
[349678750,1737372633640,-500.0,0.00020999,2]
[349678752,1737372633651,-500.0,0.00020999,2]
[349678754,1737372633662,-741.16,0.00020999,2]
[349678756,1737372633673,-500.0,0.00020999,2]
[349678758,1737372633683,-853.83,0.00020999,2]
[349678760,1737372633692,-1230.86,0.00020999,2]
[349678762,1737372633702,-949.63,0.00020999,2]
[349678764,1737372633711,-571.23,0.00020999,2]
[349678766,1737372633720,-500.0,0.00020999,2]
[349678768,1737372633730,-500.0,0.00020999,2]
[349678770,1737372633740,-500.0,0.00020999,2]
[349678771,1737372633749,-1868.94,0.00020999,2]
[349678773,1737372633759,-1268.53,0.00020999,2]
[349678777,1737372633780,-620.22,0.00020999,2]
[349678779,1737372633790,-500.0,0.00020999,2]
[349678781,1737372633800,-780.83,0.00020999,2]
[349678783,1737372633809,-500.0,0.00020999,2]
[349678784,1737372633819,-500.0,0.00020999,2]
[349678786,1737372633829,-622.6,0.00020999,2]
[349678789,1737372633839,-500.0,0.00020999,2]
[349678790,1737372633849,-1973.07,0.00020999,2]
[349678792,1737372633858,-552.95,0.00020999,2]
[349678794,1737372633868,-1088.57,0.00020999,2]
[349678796,1737372633878,-500.0,0.00020999,2]
[349678798,1737372633888,-500.0,0.00020999,2]
[349678800,1737372633898,-1000.0,0.00020999,2]
[349678803,1737372633909,-500.0,0.00020999,2]
[349678804,1737372633919,-572.45,0.00020999,2]
[349678806,1737372633929,-837.4,0.00020999,2]
[349678809,1737372633939,-500.0,0.00020999,2]
[349678811,1737372633950,-500.0,0.00020999,2]
[349678813,1737372633959,-500.0,0.00020999,2]
[349678815,1737372633969,-570.86,0.00020999,2]
[349678817,1737372633979,-557.1,0.00020999,2]
[349678819,1737372633989,-500.0,0.00020999,2]
[349678820,1737372633999,-647.82,0.00020999,2]
[349678822,1737372634009,-500.0,0.00020999,2]
[349678824,1737372634019,-500.0,0.00020999,2]
[349678827,1737372634029,-4367.75,0.00020999,2]
[349678828,1737372634039,-1712.84,0.00020999,2]
[349678830,1737372634048,-695.96,0.00020999,2]
[349678832,1737372634058,-1323.04,0.00020999,2]
[349678834,1737372634068,-500.0,0.00020999,2]
[349678836,1737372634078,-3959.21,0.00020999,2]
[349678838,1737372634088,-515.74284783,0.00020999,2]
[349678840,1737372634098,-3843.05,0.00020999,2]
[349678841,1737372634108,-500.0,0.00020999,2]
[349678842,1737372634118,-890.26,0.00020999,2]
[349678843,1737372634127,-500.0,0.00020999,2]
[349678844,1737372634137,-4062.8,0.00020999,2]
[349678845,1737372634147,-880.76,0.00020999,2]
[349678846,1737372634157,-1589.32,0.00020999,2]
[349678847,1737372634167,-825.91,0.00020999,2]
[349678848,1737372634177,-500.0,0.00020999,2]
[349678849,1737372634186,-500.0,0.00020999,2]
[349678850,1737372634196,-500.0,0.00020999,2]
[349678851,1737372634205,-4097.66,0.00020999,2]
[349678852,1737372634215,-500.0,0.00020999,2]
[349678853,1737372634224,-776.75,0.00020999,2]
[349678854,1737372634234,-500.0,0.00020999,2]
[349678856,1737372634243,-500.0,0.00020999,2]
[349678858,1737372634253,-500.0,0.00020999,2]
[349678860,1737372634262,-500.0,0.00020999,2]
[349678862,1737372634271,-500.0,0.00020999,2]
[349678864,1737372634281,-2132.03,0.00020999,2]
[349678866,1737372634291,-480.0,0.00020999,2]
[349678868,1737372634300,-685.23,0.00020999,2]
[349678888,1737372634477,-500.0,0.00020999,2]
[349678890,1737372634486,-500.0,0.00020999,2]
[349678892,1737372634495,-585.47,0.00020999,2]
[349678894,1737372634504,-500.0,0.00020999,2]
[349678896,1737372634513,-557.57,0.00020999,2]
[349678898,1737372634522,-500.0,0.00020999,2]
[349678900,1737372634531,-1070.88,0.00020999,2]
[349678902,1737372634540,-500.0,0.00020999,2]
[349678904,1737372634556,-2612.22,0.00020999,2]
[349678906,1737372634565,-500.0,0.00020999,2]
[349678908,1737372634575,-500.0,0.00020999,2]
[349678910,1737372634584,-764.22,0.00020999,2]
[349678912,1737372634593,-500.0,0.00020999,2]
[349678914,1737372634603,-500.0,0.00020999,2]
[349678916,1737372634612,-500.0,0.00020999,2]
[349678918,1737372634622,-579.89,0.00020999,2]
[349678921,1737372634632,-2686.49,0.00020999,2]
[349678923,1737372634641,-500.0,0.00020999,2]
[349678925,1737372634650,-804.83,0.00020999,2]
[349678927,1737372634661,-500.0,0.00020999,2]
[349678929,1737372634671,-500.0,0.00020999,2]
[349678930,1737372634680,-809.59,0.00020999,2]
[349678933,1737372634689,-791.11,0.00020999,2]
[349678935,1737372634698,-1709.59,0.00020999,2]
[349678937,1737372634708,-500.0,0.00020999,2]
[349678939,1737372634718,-500.0,0.00020999,2]
[349678941,1737372634727,-599.69,0.00020999,2]
[349678943,1737372634736,-1686.18,0.00020999,2]
[349678945,1737372634745,-997.88,0.00020999,2]
[349678947,1737372634755,-500.0,0.00020999,2]
[349678949,1737372634763,-1019.11,0.00020999,2]
[349678950,1737372634773,-500.0,0.00020999,2]
[349678953,1737372634783,-1217.98,0.00020999,2]
[349678955,1737372634792,-500.0,0.00020999,2]
[349678957,1737372634802,-3635.96,0.00020999,2]
[349678958,1737372634811,-513.70048621,0.00020999,2]
[349678960,1737372634820,-500.0,0.00020999,2]
[349678962,1737372634830,-879.36,0.00020999,2]
[349678965,1737372634840,-764.48,0.00020999,2]
[349678966,1737372634849,-1113.95,0.00020999,2]
[349678969,1737372634859,-500.0,0.00020999,2]
[349678970,1737372634868,-500.0,0.00020999,2]
[349678972,1737372634878,-1572.85,0.00020999,2]
[349678975,1737372634888,-1642.69,0.00020999,2]
[349678977,1737372634898,-500.0,0.00020999,2]
[349678979,1737372634908,-500.0,0.00020999,2]
[349678981,1737372634918,-1067.3,0.00020999,2]
[349678983,1737372634927,-1094.18,0.00020999,2]
[349678985,1737372634937,-161.73207264,0.00020999,2]
[349678987,1737372634946,-3120.81,0.00020999,2]
[349678989,1737372634956,-500.0,0.00020999,2]
[349678990,1737372634965,-500.0,0.00020999,2]
[349678993,1737372634975,-678.99,0.00020999,2]
[349678995,1737372634986,-2012.38,0.00020999,2]
[349678996,1737372634996,-650.1,0.00020999,2]
[349678998,1737372635006,-500.0,0.00020999,2]
[349679000,1737372635015,-500.0,0.00020999,2]
[349679002,1737372635025,-500.0,0.00020999,2]
[349679003,1737372635035,-539.63,0.00020999,2]
[349679005,1737372635044,-1818.14,0.00020999,2]
[349679007,1737372635054,-1915.77,0.00020999,2]
[349679009,1737372635063,-500.0,0.00020999,2]
[349679011,1737372635072,-500.0,0.00020999,2]
[349679013,1737372635082,-685.17,0.00020999,2]
[349679015,1737372635091,-815.91,0.00020999,2]
[349679017,1737372635101,-500.0,0.00020999,2]
[349679019,1737372635110,-852.79,0.00020999,2]
[349679021,1737372635120,-500.0,0.00020999,2]
[349679023,1737372635129,-500.0,0.00020999,2]
[349679025,1737372635138,-500.0,0.00020999,2]
[349679027,1737372635148,-500.0,0.00020999,2]
[349679029,1737372635160,-748.94,0.00020999,2]
[349679031,1737372635169,-500.0,0.00020999,2]
[349679033,1737372635178,-1080.42,0.00020999,2]
[349679035,1737372635189,-500.0,0.00020999,2]
[349679037,1737372635198,-2511.36,0.00020999,2]
[349679039,1737372635207,-500.0,0.00020999,2]
[349679041,1737372635217,-500.0,0.00020999,2]
[349679043,1737372635226,-81081.18397433,0.00021,2]
[349679057,1737372635456,-2217.73362341,0.00021,2]
[349679192,1737372638229,-500.0,0.00020999,2]
[349679193,1737372638239,-486.68389218,0.00020999,2]
[349679194,1737372638249,-818.25,0.00020999,2]
[349679195,1737372638259,-10173.58048584,0.00021,2]
[349679196,1737372638269,-1899.38,0.00021,3]
[349679197,1737372638278,-20235.4,0.00021,2]
[349679198,1737372638287,-200.0,0.00021,2]
[349679199,1737372638296,-10172.83126171,0.00021,2]
[349679200,1737372638306,-500.0,0.00021,7]
[349679201,1737372638320,-2260.23970601,0.00021,3]
[349679202,1737372638329,-3821.11730196,0.0002101,2]
[349679203,1737372638338,-1350.43898274,0.00021021,2]
[349679204,1737372638347,-5000.0,0.00021022,2]
[349679205,1737372638357,-211.12101379,0.00021033,2]
[349679206,1737372638366,-170.29,0.00021084,2]
[349679207,1737372638375,-204.0,0.0002109,2]
[349679208,1737372638385,-700.0,0.000211,7]
[349679209,1737372638394,-211.12101379,0.000211,2]
[349679210,1737372638404,-588.3,0.00021111,2]
[349679211,1737372638414,-1350.43898268,0.00021119,2]
[349679212,1737372638424,-181.60320827,0.00021121,2]
[349679213,1737372638433,-348.98886691,0.00021121,2]
[349679214,1737372638443,-500.0,0.00021121,2]
[349679215,1737372638452,-500.0,0.00021121,2]
[349679216,1737372638462,-426.86415236,0.00021121,2]
[349679217,1737372638472,-500.0,0.00021121,2]
[349679218,1737372638481,-500.0,0.00021121,2]
[349679219,1737372638491,-500.0,0.00021121,2]
[349679220,1737372638501,-200.0,0.00021121,2]
[349679221,1737372638511,-500.0,0.00021121,2]
[349679222,1737372638520,-500.0,0.00021121,2]
[349679223,1737372638530,-500.0,0.00021121,2]
[349679224,1737372638540,-500.0,0.00021121,2]
[349679225,1737372638551,-500.0,0.00021121,2]
[349679226,1737372638563,-500.0,0.00021121,2]
[349679228,1737372638572,-533.52,0.00021121,2]
[349679230,1737372638581,-500.0,0.00021121,2]
[349679232,1737372638590,-472.01,0.00021121,2]
[349679234,1737372638603,-500.0,0.00021121,2]
[349679236,1737372638616,-486.48832563,0.00021121,2]
[349679238,1737372638625,-500.0,0.00021121,2]
[349679240,1737372638636,-500.0,0.00021121,2]
[349679242,1737372638646,-500.0,0.00021121,2]
[349679244,1737372638658,-500.0,0.00021121,2]
[349679246,1737372638667,-500.0,0.00021121,2]
[349679247,1737372638677,-500.0,0.00021121,2]
[349679248,1737372638687,-500.0,0.00021121,2]
[349679249,1737372638695,-500.0,0.00021121,2]
[349679250,1737372638704,-500.0,0.00021121,2]
[349679251,1737372638714,-500.0,0.00021121,2]
[349679252,1737372638724,-500.0,0.00021121,2]
[349679253,1737372638734,-500.0,0.00021121,2]
[349679254,1737372638743,-500.0,0.00021121,2]
[349679255,1737372638753,-500.0,0.00021121,2]
[349679256,1737372638763,-500.0,0.00021121,2]
[349679257,1737372638772,-500.0,0.00021121,2]
[349679258,1737372638782,-500.0,0.00021121,2]
[349679259,1737372638792,-500.0,0.00021121,2]
[349679260,1737372638802,-500.0,0.00021121,2]
[349679261,1737372638812,-500.0,0.00021121,2]
[349679262,1737372638823,-500.0,0.00021121,2]
[349679263,1737372638833,-500.0,0.00021121,2]
[349679264,1737372638843,-500.0,0.00021121,2]
[349679265,1737372638853,-500.0,0.00021121,2]